[Event "*** Titled Tuesday Blitz"]
[Site "Chess.com"]
[Date "2019.09.03"]
[Round "3"]
[White "ulises2013"]
[Black "HanSchut"]
[Result "1-0"]
[WhiteElo "2497"]
[BlackElo "2212"]
[TimeControl "180+2"]
[EndTime "15:37:10 PDT"]
[Termination "ulises2013 won by resignation"]

1. d4 {[%clk 0:03:01.9]} 1... Nf6 {[%clk 0:03:00.4]} 2. c4 {[%clk 0:03:01.5]}
2... g6 {[%clk 0:03:01.1]} 3. Nc3 {[%clk 0:03:02.1]} 3... d5 {[%clk 0:03:02.4]}
4. Nf3 {[%clk 0:03:02.5]} 4... Bg7 {[%clk 0:03:03]} 5. Bf4 {[%clk 0:03:03.3]}
5... O-O {[%clk 0:03:03.2]} 6. Rc1 {[%clk 0:03:03.4]} 6... c6 {[%clk 0:03:01]}
7. e3 {[%clk 0:03:01]} 7... Ne4 {[%clk 0:03:01.5]} 8. h3 {[%clk 0:03:00.5]} 8...
Qa5 {[%clk 0:02:58]} 9. Qb3 {[%clk 0:02:58.7]} 9... dxc4 {[%clk 0:02:44.3]} 10.
Bxc4 {[%clk 0:02:58.8]} 10... b5 {[%clk 0:02:45]} 11. Bd3 {[%clk 0:02:57.3]}
11... Be6 {[%clk 0:02:41.1]} 12. Qc2 {[%clk 0:02:54.7]} 12... Nxc3 {[%clk
0:02:37.5]} 13. Qxc3 {[%clk 0:02:55.8]} 13... Qxa2 {[%clk 0:02:33.6]} 14. O-O
{[%clk 0:02:54.6]} 14... Rc8 {[%clk 0:02:21.9]} 15. b4 {[%clk 0:02:18.8]} 15...
a5 {[%clk 0:01:42.2]} 16. Ra1 {[%clk 0:02:16.2]} 16... Qd5 {[%clk 0:01:36.9]}
17. bxa5 {[%clk 0:02:15]} 17... c5 {[%clk 0:01:33.4]} 18. Be5 {[%clk 0:01:55.8]}
18... cxd4 {[%clk 0:01:25]} 19. Qxd4 {[%clk 0:01:50.6]} 19... Bxe5 {[%clk
0:01:00.5]} 20. Nxe5 {[%clk 0:01:47.7]} 20... Qxd4 {[%clk 0:00:41.3]} 21. exd4
{[%clk 0:01:49.6]} 21... b4 {[%clk 0:00:40.4]} 22. Rfb1 {[%clk 0:01:40.9]} 22...
b3 {[%clk 0:00:37.7]} 23. a6 {[%clk 0:01:39.2]} 23... Nc6 {[%clk 0:00:33.3]} 24.
Nxc6 {[%clk 0:01:31.6]} 24... Rxc6 {[%clk 0:00:35.2]} 25. Be4 {[%clk 0:01:32.5]}
25... Rcc8 {[%clk 0:00:33.6]} 26. Bxa8 {[%clk 0:01:33.2]} 26... Rxa8 {[%clk
0:00:35.5]} 27. a7 {[%clk 0:01:34.6]} 27... Bd5 {[%clk 0:00:32.2]} 28. Ra5
{[%clk 0:01:35]} 28... e6 {[%clk 0:00:32.7]} 29. Kf1 {[%clk 0:01:29.1]} 29...
Kg7 {[%clk 0:00:33.6]} 30. Ke2 {[%clk 0:01:30.2]} 30... Kf6 {[%clk 0:00:29.6]}
31. g3 {[%clk 0:01:29.9]} 31... Ke7 {[%clk 0:00:29.4]} 32. Kd2 {[%clk
0:01:28.8]} 32... Kd6 {[%clk 0:00:29.8]} 33. Kc3 {[%clk 0:01:26.9]} 33... Kc7
{[%clk 0:00:30.2]} 34. Kb2 {[%clk 0:01:22.9]} 34... Kb6 {[%clk 0:00:26.7]} 35.
Rba1 {[%clk 0:01:24.1]} 35... h5 {[%clk 0:00:24.5]} 36. h4 {[%clk 0:01:25.2]}
36... Kb7 {[%clk 0:00:22.7]} 37. Rb5+ {[%clk 0:01:23.3]} 37... Kc6 {[%clk
0:00:21.9]} 38. Rb4 {[%clk 0:01:22.9]} 38... Kd6 {[%clk 0:00:19.5]} 39. Ra6+
{[%clk 0:01:23.3]} 39... Ke7 {[%clk 0:00:20.2]} 40. Rb8 {[%clk 0:01:24.3]} 40...
Kf6 {[%clk 0:00:15.3]} 41. Rxa8 {[%clk 0:01:25]} 41... Bxa8 {[%clk 0:00:17.2]}
42. Kxb3 {[%clk 0:01:26.4]} 1-0

[Event "*** Titled Tuesday Blitz"]
[Site "Chess.com"]
[Date "2019.09.03"]
[Round "3"]
[White "Svet99"]
[Black "pedro_gines"]
[Result "0-1"]
[WhiteElo "2140"]
[BlackElo "2525"]
[TimeControl "180+2"]
[EndTime "15:37:13 PDT"]
[Termination "pedro_gines won by resignation"]

1. Nf3 {[%clk 0:03:01.9]} 1... d5 {[%clk 0:02:55]} 2. d4 {[%clk 0:03:01.5]} 2...
c5 {[%clk 0:02:50.9]} 3. e3 {[%clk 0:02:58.7]} 3... Nf6 {[%clk 0:02:50.1]} 4. c3
{[%clk 0:02:59.5]} 4... Nbd7 {[%clk 0:02:50.1]} 5. Nbd2 {[%clk 0:03:00.1]} 5...
Qc7 {[%clk 0:02:49.2]} 6. Bd3 {[%clk 0:03:00.1]} 6... e5 {[%clk 0:02:50.4]} 7.
dxe5 {[%clk 0:03:00]} 7... Nxe5 {[%clk 0:02:52.3]} 8. Nxe5 {[%clk 0:03:00.8]}
8... Qxe5 {[%clk 0:02:54.2]} 9. Nf3 {[%clk 0:03:01.7]} 9... Qc7 {[%clk 0:02:55]}
10. O-O {[%clk 0:03:00.9]} 10... Bd6 {[%clk 0:02:54.6]} 11. h3 {[%clk
0:03:00.3]} 11... O-O {[%clk 0:02:54.8]} 12. c4 {[%clk 0:02:57.3]} 12... dxc4
{[%clk 0:02:43.3]} 13. Bxc4 {[%clk 0:02:57.9]} 13... Bf5 {[%clk 0:02:44.9]} 14.
Qb3 {[%clk 0:02:57.4]} 14... a6 {[%clk 0:02:43.6]} 15. a4 {[%clk 0:02:57.5]}
15... Rab8 {[%clk 0:02:41]} 16. Bd2 {[%clk 0:02:38.6]} 16... Ne4 {[%clk
0:02:30]} 17. Bc3 {[%clk 0:02:34.9]} 17... Nxc3 {[%clk 0:02:29.7]} 18. Qxc3
{[%clk 0:02:34.4]} 18... b5 {[%clk 0:02:29.6]} 19. axb5 {[%clk 0:02:34.5]} 19...
axb5 {[%clk 0:02:31.5]} 20. Bd5 {[%clk 0:02:35.5]} 20... Be7 {[%clk 0:02:22.8]}
21. e4 {[%clk 0:02:35.8]} 21... Bf6 {[%clk 0:02:23]} 22. e5 {[%clk 0:02:33.6]}
22... Be7 {[%clk 0:02:17.4]} 23. Rfe1 {[%clk 0:02:30.3]} 23... Rb6 {[%clk
0:02:12.3]} 24. Qe3 {[%clk 0:02:28.5]} 24... c4 {[%clk 0:02:07.6]} 25. Qf4
{[%clk 0:02:17.1]} 25... Bd3 {[%clk 0:02:05.3]} 26. Ng5 {[%clk 0:02:13.8]} 26...
Rg6 {[%clk 0:02:00.6]} 27. Bxf7+ {[%clk 0:01:44.6]} 27... Kh8 {[%clk 0:02:01.2]}
28. Ne6 {[%clk 0:01:45.5]} 28... Rxe6 {[%clk 0:02:00.7]} 29. Ra8 {[%clk
0:01:25.3]} 29... Bd8 {[%clk 0:01:48.1]} 30. Qd4 {[%clk 0:01:09.8]} 30... Qxf7
{[%clk 0:01:40.4]} 31. Rxd8 {[%clk 0:01:10.1]} 31... h6 {[%clk 0:01:30.3]} 32.
Rd7 {[%clk 0:00:59.7]} 32... Qg6 {[%clk 0:01:24.1]} 33. Rd6 {[%clk 0:00:57.5]}
33... Rfe8 {[%clk 0:01:17.7]} 34. Ra1 {[%clk 0:00:43.6]} 34... Qe4 {[%clk
0:01:08.3]} 35. Qxe4 {[%clk 0:00:32.1]} 35... Bxe4 {[%clk 0:01:10.2]} 36. Rxe6
{[%clk 0:00:32.3]} 36... Rxe6 {[%clk 0:01:09.6]} 37. f4 {[%clk 0:00:32.4]} 37...
b4 {[%clk 0:01:09.6]} 38. Rc1 {[%clk 0:00:32.2]} 38... Rc6 {[%clk 0:01:09.4]}
39. Kf2 {[%clk 0:00:33.1]} 39... c3 {[%clk 0:01:09.9]} 40. bxc3 {[%clk
0:00:34.2]} 40... b3 {[%clk 0:01:11.1]} 41. Re1 {[%clk 0:00:34.2]} 41... b2
{[%clk 0:01:11.7]} 42. Ke3 {[%clk 0:00:35.6]} 42... b1=Q {[%clk 0:01:07.3]} 0-1

[Event "*** Titled Tuesday Blitz"]
[Site "Chess.com"]
[Date "2019.09.03"]
[Round "3"]
[White "MarcoRiehle"]
[Black "amintabatabaei"]
[Result "0-1"]
[WhiteElo "2699"]
[BlackElo "2902"]
[TimeControl "180+2"]
[EndTime "15:37:15 PDT"]
[Termination "amintabatabaei won by checkmate"]

1. e4 {[%clk 0:03:01.9]} 1... c5 {[%clk 0:02:59]} 2. Nf3 {[%clk 0:03:00.2]} 2...
Nc6 {[%clk 0:02:59.6]} 3. d4 {[%clk 0:03:01]} 3... cxd4 {[%clk 0:02:59.5]} 4.
Nxd4 {[%clk 0:03:02.9]} 4... Nf6 {[%clk 0:03:01.4]} 5. Nc3 {[%clk 0:03:03.7]}
5... d6 {[%clk 0:03:03.1]} 6. f3 {[%clk 0:02:59.6]} 6... e5 {[%clk 0:03:00.9]}
7. Nb3 {[%clk 0:02:59.3]} 7... Be7 {[%clk 0:03:01.5]} 8. Be3 {[%clk 0:02:59.9]}
8... O-O {[%clk 0:02:59.7]} 9. Be2 {[%clk 0:03:00.9]} 9... a5 {[%clk 0:02:55.9]}
10. a4 {[%clk 0:03:01.1]} 10... Be6 {[%clk 0:02:55.7]} 11. Nd5 {[%clk
0:03:01.9]} 11... Bxd5 {[%clk 0:02:56.6]} 12. exd5 {[%clk 0:03:02.8]} 12... Nb4
{[%clk 0:02:58.5]} 13. c4 {[%clk 0:03:03.4]} 13... b6 {[%clk 0:02:59.7]} 14. O-O
{[%clk 0:03:01.2]} 14... Nh5 {[%clk 0:02:59.6]} 15. Nd2 {[%clk 0:02:50.5]} 15...
Na6 {[%clk 0:02:51.5]} 16. Ne4 {[%clk 0:02:43.6]} 16... Nc5 {[%clk 0:02:48.2]}
17. Qe1 {[%clk 0:02:36.5]} 17... f5 {[%clk 0:02:45.6]} 18. Ng3 {[%clk
0:02:35.5]} 18... Nf4 {[%clk 0:02:26.7]} 19. b4 {[%clk 0:02:10.1]} 19... axb4
{[%clk 0:02:08]} 20. Qxb4 {[%clk 0:02:10.3]} 20... Bg5 {[%clk 0:02:08.8]} 21.
Bf2 {[%clk 0:02:04]} 21... h5 {[%clk 0:02:05.4]} 22. Bd1 {[%clk 0:01:56.4]}
22... h4 {[%clk 0:02:02.7]} 23. Ne2 {[%clk 0:01:56.6]} 23... Nfd3 {[%clk
0:02:04]} 24. Qb5 {[%clk 0:01:54.4]} 24... Nxf2 {[%clk 0:02:04.5]} 25. Kxf2
{[%clk 0:01:55]} 25... Nd3+ {[%clk 0:02:03.4]} 26. Kg1 {[%clk 0:01:53.8]} 26...
Be3+ {[%clk 0:02:04.7]} 27. Kh1 {[%clk 0:01:54.8]} 27... Nf2+ {[%clk 0:02:06.6]}
28. Rxf2 {[%clk 0:01:55.2]} 28... Bxf2 {[%clk 0:02:08.5]} 29. Bc2 {[%clk
0:01:51.3]} 29... Bc5 {[%clk 0:02:06]} 30. Nc3 {[%clk 0:01:40.9]} 30... Qg5
{[%clk 0:02:05.5]} 31. Qd7 {[%clk 0:01:37.7]} 31... h3 {[%clk 0:01:43.9]} 32.
gxh3 {[%clk 0:01:24.5]} 32... Qe3 {[%clk 0:01:44.3]} 33. Rf1 {[%clk 0:01:17.6]}
33... Qxc3 {[%clk 0:01:43.4]} 34. Qe6+ {[%clk 0:01:18.5]} 34... Kh8 {[%clk
0:01:42.2]} 35. Bxf5 {[%clk 0:01:18.4]} 35... Rf6 {[%clk 0:01:41.2]} 36. Qd7
{[%clk 0:01:18.6]} 36... Qxc4 {[%clk 0:01:36]} 37. Re1 {[%clk 0:01:06.8]} 37...
Qxa4 {[%clk 0:01:34.2]} 38. Qe7 {[%clk 0:00:49.9]} 38... Rxf5 {[%clk 0:01:31.6]}
39. Kg2 {[%clk 0:00:45.8]} 39... Qc2+ {[%clk 0:01:30.7]} 40. Kh1 {[%clk
0:00:45.6]} 40... Qf2 {[%clk 0:01:30.4]} 41. Re2 {[%clk 0:00:15.3]} 41... Qf1#
{[%clk 0:01:25.1]} 0-1

[Event "*** Titled Tuesday Blitz"]
[Site "Chess.com"]
[Date "2019.09.03"]
[Round "3"]
[White "cherryandmint"]
[Black "Vuks91"]
[Result "1-0"]
[WhiteElo "2811"]
[BlackElo "2583"]
[TimeControl "180+2"]
[EndTime "15:37:20 PDT"]
[Termination "cherryandmint won by checkmate"]

1. e4 {[%clk 0:03:01.9]} 1... c6 {[%clk 0:02:59.3]} 2. d4 {[%clk 0:03:02.5]}
2... d5 {[%clk 0:03:00]} 3. e5 {[%clk 0:03:04.2]} 3... Bf5 {[%clk 0:02:56.5]} 4.
Nf3 {[%clk 0:03:05]} 4... e6 {[%clk 0:02:56.8]} 5. Be2 {[%clk 0:03:06.5]} 5...
Ne7 {[%clk 0:02:57.6]} 6. O-O {[%clk 0:03:07.3]} 6... Ng6 {[%clk 0:02:58.8]} 7.
a4 {[%clk 0:02:55]} 7... Nd7 {[%clk 0:02:54.5]} 8. a5 {[%clk 0:02:56.2]} 8... f6
{[%clk 0:02:26.3]} 9. exf6 {[%clk 0:02:45.6]} 9... Qxf6 {[%clk 0:02:24.2]} 10.
Bg5 {[%clk 0:02:41.9]} 10... Qf7 {[%clk 0:02:22.1]} 11. c4 {[%clk 0:02:43.1]}
11... Bd6 {[%clk 0:02:20.7]} 12. Nc3 {[%clk 0:02:37.4]} 12... O-O {[%clk
0:02:18.2]} 13. Qd2 {[%clk 0:02:34.2]} 13... h6 {[%clk 0:02:11.8]} 14. Be3
{[%clk 0:02:33.4]} 14... Nf6 {[%clk 0:02:09]} 15. c5 {[%clk 0:02:04.7]} 15...
Bc7 {[%clk 0:02:03.4]} 16. a6 {[%clk 0:02:06.2]} 16... b5 {[%clk 0:01:52.5]} 17.
cxb6 {[%clk 0:02:07]} 17... axb6 {[%clk 0:01:54.4]} 18. Ne5 {[%clk 0:01:57.3]}
18... Nxe5 {[%clk 0:01:45.2]} 19. dxe5 {[%clk 0:01:59.2]} 19... Nd7 {[%clk
0:01:46.3]} 20. f4 {[%clk 0:01:55.7]} 20... Nc5 {[%clk 0:01:38.1]} 21. Qd1
{[%clk 0:01:47.9]} 21... Rfd8 {[%clk 0:01:09.3]} 22. b4 {[%clk 0:00:57]} 22...
d4 {[%clk 0:00:42.3]} 23. bxc5 {[%clk 0:00:58]} 23... dxe3 {[%clk 0:00:42.2]}
24. Qc1 {[%clk 0:00:59]} 24... b5 {[%clk 0:00:34.8]} 25. Qxe3 {[%clk 0:00:58.4]}
25... Bb8 {[%clk 0:00:23.3]} 26. Ne4 {[%clk 0:00:57]} 26... Bxe4 {[%clk
0:00:22.6]} 27. Qxe4 {[%clk 0:00:58.9]} 27... Rd5 {[%clk 0:00:22.3]} 28. Bf3
{[%clk 0:00:48.1]} 28... Qe7 {[%clk 0:00:19.9]} 29. Kh1 {[%clk 0:00:48.6]} 29...
Ba7 {[%clk 0:00:17.5]} 30. Qg6 {[%clk 0:00:48]} 30... Rxc5 {[%clk 0:00:15.6]}
31. Be4 {[%clk 0:00:47.4]} 31... Qf7 {[%clk 0:00:14.7]} 32. Qh7+ {[%clk
0:00:46.9]} 32... Kf8 {[%clk 0:00:15.5]} 33. f5 {[%clk 0:00:48.5]} 33... Qg8
{[%clk 0:00:16.2]} 34. fxe6+ {[%clk 0:00:48]} 34... Ke7 {[%clk 0:00:17.6]} 35.
Rf7+ {[%clk 0:00:45.9]} 35... Kxe6 {[%clk 0:00:17]} 36. Qf5# {[%clk 0:00:46.3]}
1-0

[Event "*** Titled Tuesday Blitz"]
[Site "Chess.com"]
[Date "2019.09.03"]
[Round "3"]
[White "Sosat98"]
[Black "Kanthecarowin"]
[Result "1/2-1/2"]
[WhiteElo "2597"]
[BlackElo "2375"]
[TimeControl "180+2"]
[EndTime "15:37:22 PDT"]
[Termination "Game drawn by repetition"]

1. e4 {[%clk 0:03:01.9]} 1... c6 {[%clk 0:02:59.9]} 2. Nf3 {[%clk 0:03:02]} 2...
d5 {[%clk 0:02:54.9]} 3. exd5 {[%clk 0:03:02.9]} 3... cxd5 {[%clk 0:02:56.2]} 4.
Ne5 {[%clk 0:03:03.6]} 4... Nf6 {[%clk 0:02:45.9]} 5. Bb5+ {[%clk 0:03:02]} 5...
Bd7 {[%clk 0:02:45.6]} 6. Nxd7 {[%clk 0:03:02.8]} 6... Nbxd7 {[%clk 0:02:47.4]}
7. O-O {[%clk 0:03:01.3]} 7... e6 {[%clk 0:02:48.6]} 8. d4 {[%clk 0:03:02.1]}
8... Bd6 {[%clk 0:02:49.5]} 9. c3 {[%clk 0:03:03.3]} 9... O-O {[%clk 0:02:49.6]}
10. Nd2 {[%clk 0:03:03.9]} 10... Rc8 {[%clk 0:02:44.8]} 11. f4 {[%clk
0:03:00.1]} 11... a6 {[%clk 0:02:33.9]} 12. Bd3 {[%clk 0:03:00.8]} 12... b5
{[%clk 0:02:34.6]} 13. a3 {[%clk 0:02:56.6]} 13... Qc7 {[%clk 0:02:35.2]} 14. g3
{[%clk 0:02:56.4]} 14... Nb6 {[%clk 0:02:30.8]} 15. Nf3 {[%clk 0:02:56.8]} 15...
Nc4 {[%clk 0:02:31.5]} 16. Qe2 {[%clk 0:02:57.5]} 16... a5 {[%clk 0:02:28.6]}
17. Ne5 {[%clk 0:02:57.4]} 17... b4 {[%clk 0:02:28.1]} 18. Rf3 {[%clk
0:02:48.5]} 18... Qb6 {[%clk 0:01:58.8]} 19. Kg2 {[%clk 0:02:37.4]} 19... bxa3
{[%clk 0:01:55.7]} 20. bxa3 {[%clk 0:02:36.5]} 20... Rc7 {[%clk 0:01:44.6]} 21.
Rb1 {[%clk 0:02:35.1]} 21... Qa7 {[%clk 0:01:44.2]} 22. Bxc4 {[%clk 0:02:28.8]}
22... dxc4 {[%clk 0:01:44.6]} 23. f5 {[%clk 0:02:25.1]} 23... Bxe5 {[%clk
0:01:18.6]} 24. dxe5 {[%clk 0:02:24.8]} 24... Nd5 {[%clk 0:01:19.7]} 25. f6
{[%clk 0:02:23.5]} 25... Rb7 {[%clk 0:01:17.9]} 26. Rxb7 {[%clk 0:02:17.1]}
26... Qxb7 {[%clk 0:01:19.8]} 27. fxg7 {[%clk 0:02:17.7]} 27... Rd8 {[%clk
0:01:15.4]} 28. Qxc4 {[%clk 0:02:18.2]} 28... Rc8 {[%clk 0:01:13]} 29. Qh4
{[%clk 0:02:12.5]} 29... Rxc3 {[%clk 0:01:13.5]} 30. Qd8+ {[%clk 0:02:11.4]}
30... Kxg7 {[%clk 0:01:14.3]} 31. Qg5+ {[%clk 0:02:01.3]} 31... Kf8 {[%clk
0:00:58.3]} 32. Qd8+ {[%clk 0:01:58.7]} 32... Kg7 {[%clk 0:00:58.6]} 33. Rxc3
{[%clk 0:01:55.2]} 33... Nxc3+ {[%clk 0:00:19.4]} 34. Kh3 {[%clk 0:01:49.8]}
34... Qf3 {[%clk 0:00:20.4]} 35. Qg5+ {[%clk 0:01:46.1]} 35... Kf8 {[%clk
0:00:21.6]} 36. Be3 {[%clk 0:01:39.9]} 36... Ne4 {[%clk 0:00:21.5]} 37. Qg4
{[%clk 0:01:10.4]} 37... Qxe3 {[%clk 0:00:21.2]} 38. Qh4 {[%clk 0:01:07]} 38...
Nf2+ {[%clk 0:00:21.4]} 39. Kg2 {[%clk 0:01:07.8]} 39... Qd2 {[%clk 0:00:22.7]}
40. Kf3 {[%clk 0:01:06.3]} 40... Nd3 {[%clk 0:00:23.2]} 41. Qd8+ {[%clk
0:01:07.3]} 41... Kg7 {[%clk 0:00:24.5]} 42. Qf6+ {[%clk 0:01:09]} 42... Kf8
{[%clk 0:00:26.1]} 43. Qd8+ {[%clk 0:01:10.6]} 43... Kg7 {[%clk 0:00:27.7]} 44.
Qf6+ {[%clk 0:01:12.3]} 44... Kf8 {[%clk 0:00:29.3]} 45. Qd8+ {[%clk 0:01:12.4]}
1/2-1/2

[Event "*** Titled Tuesday Blitz"]
[Site "Chess.com"]
[Date "2019.09.03"]
[Round "3"]
[White "Thjop"]
[Black "12teen"]
[Result "1-0"]
[WhiteElo "2573"]
[BlackElo "2763"]
[TimeControl "180+2"]
[EndTime "15:37:29 PDT"]
[Termination "Thjop won by resignation"]

1. e4 {[%clk 0:03:01.9]} 1... a6 {[%clk 0:03:00.4]} 2. d4 {[%clk 0:03:01.5]}
2... b5 {[%clk 0:03:01.9]} 3. c4 {[%clk 0:03:00.9]} 3... Bb7 {[%clk 0:03:00.8]}
4. f3 {[%clk 0:02:31.3]} 4... bxc4 {[%clk 0:02:54.8]} 5. Bxc4 {[%clk 0:02:30.5]}
5... e6 {[%clk 0:02:56.2]} 6. Nc3 {[%clk 0:02:29.1]} 6... d5 {[%clk 0:02:54.2]}
7. Qb3 {[%clk 0:02:21.9]} 7... Ra7 {[%clk 0:02:03.8]} 8. exd5 {[%clk 0:02:17.9]}
8... Qh4+ {[%clk 0:01:45]} 9. g3 {[%clk 0:02:10.3]} 9... Qxd4 {[%clk 0:01:38.3]}
10. Nge2 {[%clk 0:01:36.3]} 10... Qb6 {[%clk 0:01:39.3]} 11. Qxb6 {[%clk
0:01:32.3]} 11... cxb6 {[%clk 0:01:40.5]} 12. Be3 {[%clk 0:01:20.4]} 12... Bc5
{[%clk 0:01:30]} 13. Bxc5 {[%clk 0:01:18.8]} 13... bxc5 {[%clk 0:01:31.9]} 14.
dxe6 {[%clk 0:01:18.3]} 14... fxe6 {[%clk 0:01:31.6]} 15. O-O {[%clk 0:01:09.1]}
15... e5 {[%clk 0:01:21.8]} 16. f4 {[%clk 0:00:57]} 16... e4 {[%clk 0:01:21.3]}
17. Rad1 {[%clk 0:00:53.4]} 17... Nf6 {[%clk 0:01:15.6]} 18. f5 {[%clk
0:00:53.7]} 18... Nc6 {[%clk 0:01:08.4]} 19. Nf4 {[%clk 0:00:49.1]} 19... Ne5
{[%clk 0:01:04.8]} 20. Be2 {[%clk 0:00:45.9]} 20... Kf7 {[%clk 0:00:47.8]} 21.
Rd6 {[%clk 0:00:43.1]} 21... Re8 {[%clk 0:00:45.7]} 22. Rfd1 {[%clk 0:00:43.2]}
22... Bc8 {[%clk 0:00:33.3]} 23. Nh5 {[%clk 0:00:30.9]} 23... Bxf5 {[%clk
0:00:31.9]} 24. Nxf6 {[%clk 0:00:30.9]} 24... gxf6 {[%clk 0:00:33.8]} 25. Rf1
{[%clk 0:00:26.5]} 25... Kg6 {[%clk 0:00:26.6]} 26. Bh5+ {[%clk 0:00:25.5]}
26... Kxh5 {[%clk 0:00:27.5]} 27. Rxf5+ {[%clk 0:00:26.5]} 27... Kg4 {[%clk
0:00:28.2]} 28. Rf4+ {[%clk 0:00:26.2]} 28... Kg5 {[%clk 0:00:22.2]} 29. Nxe4+
{[%clk 0:00:26.5]} 29... Kg6 {[%clk 0:00:20.7]} 30. Nxf6 {[%clk 0:00:23.8]}
30... Rb8 {[%clk 0:00:13]} 31. Nd7+ {[%clk 0:00:21.5]} 1-0

[Event "*** Titled Tuesday Blitz"]
[Site "Chess.com"]
[Date "2019.09.03"]
[Round "3"]
[White "jcibarra"]
[Black "grzechu96"]
[Result "1-0"]
[WhiteElo "2819"]
[BlackElo "2587"]
[TimeControl "180+2"]
[EndTime "15:37:31 PDT"]
[Termination "jcibarra won by resignation"]

1. e4 {[%clk 0:03:01.9]} 1... e5 {[%clk 0:02:58.4]} 2. Nf3 {[%clk 0:03:01.8]}
2... Nc6 {[%clk 0:02:59.5]} 3. d4 {[%clk 0:03:01.9]} 3... exd4 {[%clk
0:03:00.6]} 4. Nxd4 {[%clk 0:03:02.9]} 4... Nf6 {[%clk 0:03:01]} 5. Nxc6 {[%clk
0:02:52.4]} 5... bxc6 {[%clk 0:03:02.9]} 6. e5 {[%clk 0:02:48.2]} 6... Qe7
{[%clk 0:03:02.8]} 7. Qe2 {[%clk 0:02:48.5]} 7... Nd5 {[%clk 0:03:04]} 8. h4
{[%clk 0:02:45.1]} 8... Qe6 {[%clk 0:02:58]} 9. Nd2 {[%clk 0:02:33.7]} 9... d6
{[%clk 0:02:48.1]} 10. exd6 {[%clk 0:02:29.6]} 10... cxd6 {[%clk 0:02:45.2]} 11.
Ne4 {[%clk 0:02:15.3]} 11... Be7 {[%clk 0:02:41.5]} 12. Bg5 {[%clk 0:02:06.6]}
12... O-O {[%clk 0:02:37.9]} 13. O-O-O {[%clk 0:01:58.7]} 13... f6 {[%clk
0:02:03.1]} 14. Bd2 {[%clk 0:01:51.2]} 14... Rb8 {[%clk 0:02:01.9]} 15. c4
{[%clk 0:01:42.1]} 15... Nb6 {[%clk 0:01:40]} 16. Bf4 {[%clk 0:01:22.1]} 16...
Rd8 {[%clk 0:01:06.6]} 17. Nxd6 {[%clk 0:01:03.1]} 17... Qxe2 {[%clk 0:00:24.9]}
18. Bxe2 {[%clk 0:01:02.5]} 18... Be6 {[%clk 0:00:23.2]} 19. b3 {[%clk
0:00:57.5]} 19... Ra8 {[%clk 0:00:14.1]} 20. Bf3 {[%clk 0:00:57.8]} 20... Bd5
{[%clk 0:00:07.5]} 21. cxd5 {[%clk 0:00:46.7]} 21... Bxd6 {[%clk 0:00:08.4]} 22.
Bxd6 {[%clk 0:00:47.7]} 22... Rxd6 {[%clk 0:00:09.8]} 23. dxc6 {[%clk
0:00:49.4]} 23... Re6 {[%clk 0:00:10.2]} 24. c7 {[%clk 0:00:41.8]} 24... Rc8
{[%clk 0:00:11.2]} 25. Rd8+ {[%clk 0:00:42.5]} 25... Re8 {[%clk 0:00:08.6]} 26.
Rxe8+ {[%clk 0:00:36.5]} 26... Rxe8 {[%clk 0:00:09.9]} 27. Rd1 {[%clk
0:00:33.9]} 27... Kf7 {[%clk 0:00:04.6]} 28. Rd8 {[%clk 0:00:30.6]} 28... Ke7
{[%clk 0:00:05.4]} 29. Rxe8+ {[%clk 0:00:29.5]} 29... Kxe8 {[%clk 0:00:07.3]}
30. Bg4 {[%clk 0:00:29.1]} 1-0

[Event "*** Titled Tuesday Blitz"]
[Site "Chess.com"]
[Date "2019.09.03"]
[Round "3"]
[White "almaguerjm"]
[Black "FedaMaster"]
[Result "0-1"]
[WhiteElo "2364"]
[BlackElo "2595"]
[TimeControl "180+2"]
[EndTime "15:37:38 PDT"]
[Termination "FedaMaster won by resignation"]

1. d4 {[%clk 0:03:01.9]} 1... Nf6 {[%clk 0:02:58.7]} 2. c4 {[%clk 0:03:00.6]}
2... g6 {[%clk 0:02:59.5]} 3. Nc3 {[%clk 0:02:51]} 3... d5 {[%clk 0:03:00.5]} 4.
Nf3 {[%clk 0:02:46.1]} 4... Bg7 {[%clk 0:03:00.7]} 5. Bg5 {[%clk 0:02:46.5]}
5... c5 {[%clk 0:02:49.4]} 6. Bxf6 {[%clk 0:02:44.2]} 6... Bxf6 {[%clk
0:02:50.2]} 7. cxd5 {[%clk 0:02:44.8]} 7... cxd4 {[%clk 0:02:49.6]} 8. Nxd4
{[%clk 0:02:45.4]} 8... Qb6 {[%clk 0:02:49.1]} 9. Nb3 {[%clk 0:02:38.6]} 9... a5
{[%clk 0:02:48.1]} 10. a4 {[%clk 0:02:23.5]} 10... O-O {[%clk 0:02:22.3]} 11. e3
{[%clk 0:02:02.3]} 11... Bg4 {[%clk 0:01:11.5]} 12. Be2 {[%clk 0:01:24.6]} 12...
Bxe2 {[%clk 0:01:09.1]} 13. Kxe2 {[%clk 0:01:25.5]} 13... Rd8 {[%clk 0:00:55.5]}
14. Nb5 {[%clk 0:00:51]} 14... Na6 {[%clk 0:00:24.7]} 15. Rc1 {[%clk 0:00:29.9]}
15... Bxb2 {[%clk 0:00:21.5]} 16. Rc2 {[%clk 0:00:28.9]} 16... Bf6 {[%clk
0:00:22.5]} 17. e4 {[%clk 0:00:30.1]} 17... Nb4 {[%clk 0:00:19.7]} 18. Rd2
{[%clk 0:00:31.2]} 18... Rac8 {[%clk 0:00:18.8]} 19. Qb1 {[%clk 0:00:31]} 19...
Rc4 {[%clk 0:00:13.6]} 20. Rc1 {[%clk 0:00:29.6]} 20... Rdc8 {[%clk 0:00:14.5]}
21. Rxc4 {[%clk 0:00:30.2]} 21... Rxc4 {[%clk 0:00:16.4]} 22. f3 {[%clk
0:00:29.7]} 22... Bg5 {[%clk 0:00:16.6]} 23. Rd4 {[%clk 0:00:29.7]} 23... Rc2+
{[%clk 0:00:16.5]} 24. Kf1 {[%clk 0:00:30.9]} 24... Be3 {[%clk 0:00:14.8]} 25.
Rxb4 {[%clk 0:00:12.3]} 25... Rf2+ {[%clk 0:00:15.5]} 26. Ke1 {[%clk 0:00:13.1]}
26... axb4 {[%clk 0:00:16.6]} 27. Qd3 {[%clk 0:00:14]} 27... Rxg2 {[%clk
0:00:15.8]} 28. Qc4 {[%clk 0:00:13.8]} 28... Bd2+ {[%clk 0:00:13.5]} 29. Kd1
{[%clk 0:00:13.7]} 29... Qg1+ {[%clk 0:00:14.6]} 30. Kc2 {[%clk 0:00:15.1]}
30... Bc3+ {[%clk 0:00:16.2]} 31. Kd3 {[%clk 0:00:16.1]} 31... Qf1+ {[%clk
0:00:17.5]} 32. Ke3 {[%clk 0:00:14.9]} 32... Qxc4 {[%clk 0:00:18]} 0-1